Workbook

Sheet صندوق الخزينة
A1: التاريخ | B1: رصيد سابق | C1: رصيد إجمالي اليوم (مدين للإيرادات) | D1: رصيد إجمالي اليوم (دائن للمصروفات)
A2: 2024-12-31 | B2: 0 | C2: 8712 | D2: 0
A3: 2025-01-01 | B3: 8712 | C3: 11737 | D3: 3040
A4: 2025-04-17 | B4: =B3+C3-D3 -> 17409 | C4: 8712 | D4: 3040
A5: 2025-04-17 | B5: =B4+C4-D4 -> 23081 | C5: 3015 | D5: 0
A6: إجمالي شهر ديسمبر | B6: =B3 -> 8712 | C6: 8712 | D6: 0
A7: إجمالي شهر يناير | B7: 52227 | C7: 11737 | D7: 3040
A8: إجمالي شهر أبريل | B8: 113141 | C8: 11727 | D8: 3040

Sheet إيرادات ومصروفات
A1: رقم المسلسل | B1: التاريخ | C1: نوع السند | D1: كود التوريد | E1: اسم التوريد | F1: المبلغ | G1: الملاحظات
A2: 1 | B2: 17-04-2025 | C2: إيرادات | D2: 11 | E2: حسن احمد | F2: 5000 | G2: توريد نقدية من كودالمندوب 11 اسم المندوب حسن احمد
A3: 1 | B3: 17-04-2025 | C3: إيرادات | D3: 12 | E3: مبارك احمد | F3: 5556 | G3: توريد نقدية من كودالمندوب 12 اسم المندوب مبارك احمد
A4: 1 | B4: 17-04-2025 | C4: إيرادات | D4: 10 | E4: بيع مباشر | F4: 3000 | G4: توريد نقدية من كودالمندوب 10 اسم المندوب بيع مباشر
A5: 1 | B5: 17-04-2025 | C5: إيرادات | D5: 12 | E5: مبارك احمد | F5: 5025 | G5: توريد نقدية من كودالمندوب 12 اسم المندوب مبارك احمد
A6: 1 | B6: 17-04-2025 | C6: إيرادات | D6: 11 | E6: حسن احمد | F6: 3024 | G6: توريد نقدية من كودالمندوب 11 اسم المندوب حسن احمد
A7: 1 | B7: 17-04-2025 | C7: إيرادات | D7: 12 | E7: مبارك احمد | F7: 3642 | G7: توريد نقدية من كودالمندوب 12 اسم المندوب مبارك احمد
A8: 1 | B8: 17-04-2025 | C8: إيرادات | D8: 10 | E8: بيع مباشر | F8: 3694 | G8: توريد نقدية من كودالمندوب 10 اسم المندوب بيع مباشر
A9: 1 | B9: 17-04-2025 | C9: إيرادات | D9: 11 | E9: حسن احمد | F9: 8712 | G9: توريد نقدية من كودالمندوب 11 اسم المندوب حسن احمد
A10: 1 | B10: 2025-04-17 | C10: مصروفات | D10: 4 | E10: مرتبات وحوافز | F10: 3040 | G10: توريد نقدية من كودالمندوب 4 اسم المندوب مرتبات وحوافز
A11: 1 | B11: 17-04-2025 | C11: إيرادات | D11: 12 | E11: مبارك احمد | F11: 3025 | G11: توريد نقدية من كودالمندوب 12 اسم المندوب مبارك احمد
A12: 1 | B12: 17-04-2025 | C12: إيرادات | D12: 12 | E12: مبارك احمد | F12: 7000 | G12: توريد نقدية من كودالمندوب 12 اسم المندوب مبارك احمد
A13: 1 | B13: 17-04-2025 | C13: إيرادات | D13: 11 | E13: حسن احمد | F13: 3025 | G13: توريد نقدية من كودالمندوب 11 اسم المندوب حسن احمد
A14: 1 | B14: 17-04-2025 | C14: إيرادات | D14: 10 | E14: بيع مباشر | F14: 3015 | G14: توريد نقدية من كودالمندوب 10 اسم المندوب بيع مباشر

Sheet Data
A1: كود الإيرادات | B1: اسم الإيرادات | C1: كود المصروفات | D1: اسم المصروفات
A2: 2 | B2: رد سلف | C2: 1 | D2: مصروفات
A3: 9 | B3: متوقفات | C3: 2 | D3: سلف
A4: 10 | B4: بيع مباشر | C4: 3 | D4: ايداع بالبنك
A5: 11 | B5: حسن احمد | C5: 4 | D5: مرتبات وحوافز
A6: 12 | B6: مبارك احمد | C6: 5 | D6: مصروفات السيارة
A7: 13 | B7: عصام انور | C7: 6 | D7: تعتيق جرار
A8: 14 | B8: ابوبكر حسين | C8: 7 | D8: الخزينة الرئيسية
A9: 15 | B9: عبد الرحمن احمد | C9: 8 | D9: ايجار سيارة
A10: 16 | B10: مبارك جاد | C10: 9 | D10: ايجار مخزن / مكتب
C11: 10 | D11: بوفية
C12: 11 | D12: نت ومكالمات وكرباء وغازومياة
C13: 12 | D13: ورق وطباعة وستلزمات كمبيوتر

Sheet تقرير الإيرادات الشهري
A1: رقم المسلسل | B1: التاريخ | C1: كود التوريد | D1: اسم التوريد | E1: المبلغ | F1: الملاحظات
A2: 1 | B2: 16-04-2025 | C2: 11 | D2: حسن احمد | E2: 300 | F2: توريد المندوب حسن احمد
D3: الإجمالي | E3: 300

Sheet تقرير المصروفات الشهري

Sheet تحليل الايرادات والمصروفات
A1: التاريخ | B1: اول المدة | C1: توريدات | D1: مصروفات | E1: سلف | F1: ايداع بالبنك | G1: مرتبات وحوافز | H1: مصروفات السيارة | I1: تعتيق جرار | J1: الخزينة الرئيسية | K1: ايجار سيارة | L1: ايجار مخزن ومكتب | M1: بوفية | N1: نت ومكالمات وكهرباء ومياة | O1: ورق وطباعة وستلزمات كمبيوتى | P1: نهاية الرصيد | Q1: اجمالى المصروفات
A2: 00:00:00 | C2: 0 | D2: 10730 | E2: 20800 | F2: 1296400 | G2: 30292 | H2: 15850 | I2: 800 | J2: 0 | K2: 37800 | L2: 7200 | M2: 567 | N2: 143 | O2: 205 | P2: =B2+C2-D2-E2-F2-G2-H2-I2-J2-K2-L2-M2-N2-O2 ->  | Q2: =D2+G2+H2+I2+J2+K2+L2+M2+N2+O2 -> 103587
A3: =EDATE(A2,1) -> 1900-01-31 | B3: =IF(C3<>0,P2,0) -> 0 | C3: 0 | D3: 835 | E3: 8700 | F3: 722900 | G3: 51308 | H3: 11545 | I3: 0 | J3: 0 | K3: 48040 | L3: 0 | M3: 175 | N3: 50 | O3: 120 | P3: =B3+C3-D3-E3-F3-G3-H3-I3-J3-K3-L3-M3-N3-O3 -> -843673 | Q3: =D3+G3+H3+I3+J3+K3+L3+M3+N3+O3 -> 112073
A4: =EDATE(A3,1) -> 1900-02-28 | B4: =IF(C4<>0,P3,0) -> 0 | C4: 0 | D4: 0 | E4: 0 | F4: 0 | G4: 0 | H4: 0 | I4: 0 | J4: 0 | K4: 0 | L4: 0 | M4: 0 | N4: 0 | O4: 0 | P4: =B4+C4-D4-E4-F4-G4-H4-I4-J4-K4-L4-M4-N4-O4 -> 0 | Q4: =D4+G4+H4+I4+J4+K4+L4+M4+N4+O4 -> 0
A5: 1900-03-28 | B5: 0 | C5: 0 | D5: 0 | E5: 0 | F5: 0 | G5: 0 | H5: 0 | I5: 0 | J5: 0 | K5: 0 | L5: 0 | M5: 0 | N5: 0 | O5: 0 | P5: 0 | Q5: =D5+G5+H5+I5+J5+K5+L5+M5+N5+O5 -> 0
A6: =EDATE(A5,1) -> 1900-04-28 | B6: 0 | C6: 0 | D6: 0 | E6: 0 | F6: 0 | G6: 0 | H6: 0 | I6: 0 | J6: 0 | K6: 0 | L6: 0 | M6: 0 | N6: 0 | O6: 0 | P6: 0 | Q6: 0
A7: 1900-05-28 | B7: 0 | C7: 0 | D7: 0 | E7: 0 | F7: 0 | G7: 0 | H7: 0 | I7: 0 | J7: 0 | K7: 0 | L7: 0 | M7: 0 | N7: 0 | O7: 0 | P7: =B7+C7-D7-E7-F7-G7-H7-I7-J7-K7-L7-M7-N7-O7 -> 0 | Q7: 0
A8: 1900-06-28 | B8: 0 | C8: 0 | D8: 0 | E8: 0 | F8: 0 | G8: 0 | H8: 0 | I8: 0 | J8: 0 | K8: 0 | L8: 0 | M8: 0 | N8: 0 | O8: 0 | P8: 0 | Q8: =D8+G8+H8+I8+J8+K8+L8+M8+N8+O8 -> 0
A9: 1900-07-28 | B9: 0 | C9: 0 | D9: 0 | E9: 0 | F9: 0 | G9: 0 | H9: 0 | I9: 0 | J9: 0 | K9: 0 | L9: 0 | M9: 0 | N9: 0 | O9: 0 | P9: 0 | Q9: =D9+G9+H9+I9+J9+K9+L9+M9+N9+O9 -> 0
A10: 1900-08-28 | B10: 0 | C10: 0 | D10: 0 | E10: 0 | F10: 0 | G10: 0 | H10: 0 | I10: 0 | J10: 0 | K10: 0 | L10: 0 | M10: 0 | N10: 0 | O10: 0 | P10: =B10+C10-D10-E10-F10-G10-H10-I10-J10-K10-L10-M10-N10-O10 -> 0 | Q10: 0
A11: 1900-09-28 | B11: 0 | C11: 0 | D11: 0 | E11: 0 | F11: 0 | G11: 0 | H11: 0 | I11: 0 | J11: 0 | K11: 0 | L11: 0 | M11: 0 | N11: 0 | O11: 0 | P11: =B11+C11-D11-E11-F11-G11-H11-I11-J11-K11-L11-M11-N11-O11 -> 0 | Q11: =D11+G11+H11+I11+J11+K11+L11+M11+N11+O11 -> 0
A12: 1900-10-28 | B12: 0 | C12: 0 | D12: 0 | E12: 0 | F12: 0 | G12: 0 | H12: 0 | I12: 0 | J12: 0 | K12: 0 | L12: 0 | M12: 0 | N12: 0 | O12: 0 | P12: 0 | Q12: 0
A13: 1900-11-28 | B13: 0 | C13: 0 | D13: 0 | E13: 0 | F13: 0 | G13: 0 | H13: 0 | I13: 0 | J13: 0 | K13: 0 | L13: 0 | M13: 0 | N13: 0 | O13: 0 | P13: =B13+C13-D13-E13-F13-G13-H13-I13-J13-K13-L13-M13-N13-O13 -> 0 | Q13: =D13+G13+H13+I13+J13+K13+L13+M13+N13+O13 -> 0
A14: الاجمــــالى | B14: =SUM($B$5:$B$5) -> 0 | C14: =SUM(C2:C13) -> 0 | D14: =SUM(D2:D13) -> 11565 | E14: =SUM(E2:E13) -> 29500 | F14: 2019300 | G14: 81600 | H14: 27395 | I14: 800 | J14: 0 | K14: 85840 | L14: 7200 | M14: 742 | N14: 193 | O14: 325 | P14: =B14+C14-D14-E14-F14-G14-H14-I14-J14-K14-L14-M14-N14-O14 -> -2264460 | Q14: =SUM(Q2:Q13) -> 215660
B16: توريدات المناديب | Q16: 1268846.75
B17: 2 | C17: 9 | D17: 10 | E17: 11 | F17: 12 | G17: 13 | H17: 14 | I17: 15 | J17: 16 | K17: 17 | L17: 18 | M17: 19 | N17: 20 | O17: 21 | P17: الصندوق | Q17: =Q14-Q16 -> -1053186.75
A18: التاريخ | B18: رد السلف | C18: متوقفات مديونية | D18: بيع مباشر | E18: حسن احمد | F18: سيد احمد عارف | G18: عصام انور | H18: اخرى 2 | I18: اخرى 3 | J18: اخرى 4 | K18: اخرى 5 | L18: اخرى 6 | M18: اخرى 7 | N18: اخرى 8 | O18: اخرى 9 | P18: اجمالى التوريدات
A19: =A2 -> 00:00:00 | B19: 0 | C19: 0 | D19: 0 | E19: 728694 | F19: 452415 | G19: 155183 | H19: 0 | I19: 0 | J19: 0 | K19: 0 | L19: 0 | M19: 0 | N19: 0 | O19: 0 | P19: =SUM(B19:O19) -> 1336292 | Q19: 23655
A20: =EDATE(A19,1) -> 1900-01-31 | B20: 20800 | C20: 0 | D20: 0 | E20: 352150 | F20: 352900 | G20: 78743 | H20: 0 | I20: 0 | J20: 0 | K20: 0 | L20: 0 | M20: 0 | N20: 0 | O20: 0 | P20: =SUM(B20:O20) -> 804593 | Q20: =Q18-Q19 -> -23655
A21: =EDATE(A20,1) -> 1900-02-28 | B21: 0 | C21: 0 | D21: 0 | E21: 0 | F21: 0 | G21: 0 | H21: 0 | I21: 0 | J21: 0 | K21: 0 | L21: 0 | M21: 0 | N21: 0 | O21: 0 | P21: 0 | Q21: 1898
A22: 1900-03-28 | B22: 0 | C22: 0 | D22: 0 | E22: 0 | F22: 0 | G22: 0 | H22: 0 | I22: 0 | J22: 0 | K22: 0 | L22: 0 | M22: 0 | N22: 0 | O22: 0 | P22: 0 | Q22: =Q20-Q21 -> -25553
A23: =EDATE(A22,1) -> 1900-04-28 | B23: 0 | C23: 0 | D23: 0 | E23: 0 | F23: 0 | G23: 0 | H23: 0 | I23: 0 | J23: 0 | K23: 0 | L23: 0 | M23: 0 | N23: 0 | O23: 0 | P23: 0
A24: 1900-05-28 | B24: 0 | C24: 0 | D24: 0 | E24: 0 | F24: 0 | G24: 0 | H24: 0 | I24: 0 | J24: 0 | K24: 0 | L24: 0 | M24: 0 | N24: 0 | O24: 0 | P24: 0
A25: 1900-06-28 | B25: 0 | C25: 0 | D25: 0 | E25: 0 | F25: 0 | G25: 0 | H25: 0 | I25: 0 | J25: 0 | K25: 0 | L25: 0 | M25: 0 | N25: 0 | O25: 0 | P25: 0
A26: 1900-07-28 | B26: 0 | C26: 0 | D26: 0 | E26: 0 | F26: 0 | G26: 0 | H26: 0 | I26: 0 | J26: 0 | K26: 0 | L26: 0 | M26: 0 | N26: 0 | O26: 0 | P26: 0
A27: 1900-08-28 | B27: 0 | C27: 0 | D27: 0 | E27: 0 | F27: 0 | G27: 0 | H27: 0 | I27: 0 | J27: 0 | K27: 0 | L27: 0 | M27: 0 | N27: 0 | O27: 0 | P27: =SUM(B27:O27) -> 0
A28: 1900-09-28 | B28: 0 | C28: 0 | D28: 0 | E28: 0 | F28: 0 | G28: 0 | H28: 0 | I28: 0 | J28: 0 | K28: 0 | L28: 0 | M28: 0 | N28: 0 | O28: 0 | P28: 0
A29: 1900-10-28 | B29: 0 | C29: 0 | D29: 0 | E29: 0 | F29: 0 | G29: 0 | H29: 0 | I29: 0 | J29: 0 | K29: 0 | L29: 0 | M29: 0 | N29: 0 | O29: 0 | P29: 0
A30: 1900-11-28 | B30: 0 | C30: 0 | D30: 0 | E30: 0 | F30: 0 | G30: 0 | H30: 0 | I30: 0 | J30: 0 | K30: 0 | L30: 0 | M30: 0 | N30: 0 | O30: 0 | P30: 0 | Q30: =Q31+L31 -> 2140885
A31: الاجمــــالى | B31: =SUM(B19:B30) -> 20800 | C31: =SUM(C19:C30) -> 0 | D31: =SUM(D19:D30) -> 0 | E31: =SUM(E19:E30) -> 1080844 | F31: 805315 | G31: 233926 | H31: 0 | I31: 0 | J31: 0 | K31: 0 | L31: 0 | M31: 0 | N31: 0 | O31: 0 | P31: =SUM(P19:P30) -> 2140885 | Q31: =B31+C31+E31+F31+G31+H31+I31+J31+K31+M31+N31+N31+O31 -> 2140885
